Cogmind - Beta 15 @@@ ROGUE MODE // 2025.05.28 @ 22:04:59 Player: KaiserChief Result: Destroyed by as-74424 with Assembled Blade Performance ------------- Evolutions (1) 500 Regions Visited (4) 800 Robots Destroyed (8) 40 Value Destroyed (151) 151 Prototype IDs (0) 0 Alien Tech Used (0) 0 Bonus (91) 91 TOTAL SCORE: 1582 Bonus ------- Follower Combat Kills 91 Cogmind --------- Core Integrity 0/400 Matter 281/300 Energy 100/100 System Corruption 31% Temperature Cool (20) Movement Core (50) Location -9/Mines Parts ------- > --- POWER (1) -------- (None) > --- PROPULSION (4) --- (None) > --- UTILITY (2) ------ (None) > --- WEAPON (2) ------- (None) > --- INVENTORY (5) ---- (None) Peak State ------------ > --- POWER ------------ Ion Engine > --- PROPULSION ------- Aluminum Leg Aluminum Leg Aluminum Leg Aluminum Leg > --- UTILITY ---------- Heat Sink Compact Matter Pod > --- WEAPON ----------- Assault Rifle Light Assault Rifle > --- INVENTORY -------- Wheel Compact Wheel Medium Laser [Rating: 11] Favorites ----------- Power Ion Engine Engine Ion Engine Propulsion Aluminum Leg Leg Aluminum Leg Utility Heat Sink Device Heat Sink Storage Compact Matter Pod Protection Light Armor Plating Weapon Light Assault Rifle Ballistic Gun Light Assault Rifle Build | -11 -10 -10 -9 -9 ------- Run | Yrd Mat Min Mat Min Slots Evolved 2 | . . . 2 . Power . | . . . . . Propulsion 2 | . . . 2 . Utility . | . . . . . Weapon . | . . . . . Parts Attached 14 | 5 . 3 2 4 Power 3 | 1 . 1 . 1 Engine 3 | 1 . 1 . 1 Core . | . . . . . Reactor . | . . . . . Propulsion 5 | 2 . . 2 1 Treads . | . . . . . Leg 5 | 2 . . 2 1 Wheel . | . . . . . Hover . | . . . . . Flight . | . . . . . Utility 3 | . . 2 . 1 Device 1 | . . 1 . . Storage 1 | . . 1 . . Processor . | . . . . . Hackware . | . . . . . Protection 1 | . . . . 1 Artifact . | . . . . . Weapon 3 | 2 . . . 1 Energy Gun . | . . . . . Energy Cannon . | . . . . . Ballistic Gun 3 | 2 . . . 1 Ballistic Cannon . | . . . . . Launcher . | . . . . . Special Weapon . | . . . . . Impact Weapon . | . . . . . Slashing Weapon . | . . . . . Piercing Weapon . | . . . . . Special Melee Weapon . | . . . . . Unidentified Prototypes . | . . . . . Parts Lost 14 | . . 1 . 13 Power 3 | . . 1 . 2 Propulsion 5 | . . . . 5 Utility 3 | . . . . 3 Weapon 3 | . . . . 3 Highest Loss Streak 8 | . . 1 . 8 To Critical Strikes 1 | . . . . 1 Average Backups 4 | 2 4 4 4 2 Power . | . 1 . . . Propulsion 2 | 1 2 3 1 . Utility . | . . . . . Weapon . | . 1 1 1 . Tool/Special . | . . . . . Unused Backups 3 | . . . 3 . Power . | . . . . . Propulsion 2 | . . . 2 . Utility . | . . . . . Weapon 1 | . . . 1 . Tool/Special . | . . . . . Average Slot Usage (%) 92 | . 71 98 99 68 Engine 12 | . 14 13 11 10 Leg 32 | . 28 28 43 30 Device 10 | . . 13 11 4 Storage 9 | . . 13 11 3 Ballistic Gun 25 | . 28 28 22 20 Peak Build Rating 11 | 5 5 9 11 11 Average Rating 8 | 4 5 8 10 6 On Entrance 6 | . 5 5 9 11 Naked Turns 7 | . . . . 7 Heaviest Build 12 | 6 6 10 10 12 Greatest Support 40 | 20 20 20 40 40 Greatest Overweight (x) . | . . . . . Average Overweight (x) . | . . . . . Largest Inventory Capacity 5 | 5 5 5 5 5 Average Capacity 5 | 5 5 5 5 5 Most Carried 5 | 5 5 5 5 4 Average Carried 4 | 2 4 4 4 2 Final Capacity 5 | 5 5 5 5 5 Final Carried 5 | 4 5 5 4 . Class Distribution -------------------- 100% | Mutant Dominant Class ---------------- Mutant | -10/Materials Mutant | -10/Mines Mutant | -9/Materials Mutant | -9/Mines Resources | -11 -10 -10 -9 -9 ----------- Run | Yrd Mat Min Mat Min Matter Collected 511 | 256 . 154 93 8 Remotely . | . . . . . Salvage Created 198 | 27 . 90 73 8 Parts 14 | 3 . 2 9 . Haulers Intercepted . | . . . . . Recyclers Shooed 1 | . . . 1 . Parts Field Recycled . | . . . . . Retrieved Matter . | . . . . . Parts Self-Destructed . | . . . . . Prevented . | . . . . . Kills | -11 -10 -10 -9 -9 ------- Run | Yrd Mat Min Mat Min Combat Hostiles Destroyed 6 | . . 2 3 1 Guns 6 | . . 2 3 1 Classes Destroyed 5 | 1 . 1 2 1 Tunneler 2 | 2 . . . . Watcher 1 | . . . 1 . Swarmer 3 | . . . 3 . Grunt 2 | . . 2 . . Assembled 1 | . . . . 1 Best Kill Streak 2 | 1 . 2 2 1 Combat Bots Only 2 | . . 2 2 1 Max Kills in Single Turn 1 | 1 . 1 1 1 Gunslinging . | . . . . . Exploded . | . . . . . Melee . | . . . . . Uniques/NPCs Destroyed . | . . . . . Combat | -11 -10 -10 -9 -9 -------- Run | Yrd Mat Min Mat Min Hostile Shots Fired 118 | . 9 11 16 82 Missed 33 | . 3 3 6 21 Hits 85 | . 6 8 10 61 Melee 26 | . . . . 26 Projectile 59 | . 6 8 10 35 Critical Strikes 2 | . . . . 2 Damage Taken 1376 | . 94 114 122 1046 Core 431 | . 14 14 25 378 Absorbed by Shields . | . . . . . Core Remaining (%) 94 | 100 . 88 . . Volleys Fired 51 | 9 6 8 14 14 Largest 2 | 2 2 2 2 2 Hottest 43 | 40 40 40 40 43 Shots Fired 100 | 18 12 16 28 26 Gun 100 | 18 12 16 28 26 Cannon . | . . . . . Launcher . | . . . . . Special . | . . . . . Kinetic 100 | 18 12 16 28 26 Thermal . | . . . . . Explosive . | . . . . . Electromagnetic . | . . . . . Robot Hit Streak 11 | 6 4 9 11 6 Robot Miss Streak 3 | 1 1 3 3 3 Penetration Max . | . . . . . Secondary Targets 1 | . . . 1 . Max Gunslinging Chain 1 | . . . 1 . Shots Hit Robots 62 | 12 8 11 15 16 Core Hits 22 | 5 1 5 5 6 Critical Kills . | . . . . . Critical Parts Destroyed 1 | . . 1 . . Critical Strikes 1 | . . 1 . . Destroy 1 | . . 1 . . Melee Attacks . | . . . . . Impact . | . . . . . Slashing . | . . . . . Piercing . | . . . . . Sneak Attacks . | . . . . . Combat Hostiles . | . . . . . Follow-up Attacks . | . . . . . Damage Inflicted 683 | 125 79 119 154 206 Guns 667 | 125 79 119 153 191 Cannons . | . . . . . Explosions . | . . . . . Melee . | . . . . . Ramming 16 | . . . 1 15 Kinetic 667 | 125 79 119 153 191 Thermal . | . . . . . Explosive . | . . . . . Electromagnetic . | . . . . . Impact . | . . . . . Slashing . | . . . . . Piercing . | . . . . . Highest Corruption 31 | . . . . 31 Average Corruption 12 | . . . . 12 Corruption Purged . | . . . . . Corruption Blocked . | . . . . . Effects 7 | . . . . 7 Message Errors 2 | . . . . 2 Matter Fused 2 | . . . . 2 Alerts 1 | . . . . 1 Misdirections 2 | . . . . 2 Overload Shots . | . . . . . Overflow Damage . | . . . . . Projectiles . | . . . . . Explosions . | . . . . . Melee . | . . . . . Knockbacks . | . . . . . Impact . | . . . . . Kinetic . | . . . . . Secondary . | . . . . . Self-Inflicted Damage 5 | . . . . 5 Shots . | . . . . . Rammed 4 | . . . . 4 Targets Rammed 8 | . . . 1 7 Kicked 4 | . . . 1 3 Crushed . | . . . . . Highest Temperature 9 | . 9 . . 4 Average Temperature 5 | . 9 . . 2 Received Heat Transfer 317 | . 54 66 15 182 Siege Activations . | . . . . . Martial Activations . | . . . . . Shielding Activations . | . . . . . Robots Disrupted . | . . . . . Combat Hostiles . | . . . . . Robots Corrupted . | . . . . . Combat Hostiles . | . . . . . Parts Fried . | . . . . . Impact Corruptions . | . . . . . Robots Melted . | . . . . . Combat Hostiles . | . . . . . Parts Melted . | . . . . . Heat Transferred . | . . . . . Parts Sabotaged . | . . . . . Parts Stolen . | . . . . . Parts Stripped . | . . . . . Power Chain Reactions . | . . . . . Alert | -11 -10 -10 -9 -9 ------- Run | Yrd Mat Min Mat Min Maximum Alert Level . | . . . . . Low Security (%) 100 | 100 100 100 100 100 Level 1 . | . . . . . Level 2 . | . . . . . Level 3 . | . . . . . Level 4 . | . . . . . Level 5 . | . . . . . High Security . | . . . . . Max Security . | . . . . . Peak Influence 119 | 5 . 40 119 34 Initial 34 | . . . . 34 Average 14 | 1 . 4 44 4 Influence Increases 260 | 10 . 50 200 . Destroy 0b10 Robot/C 160 | . . 40 120 . Destroy 0b10 Robot/NC 15 | 10 . . 5 . Destroy Leader 42 | . . 10 32 . Allied During Kill 5 | . . . 5 . Successful Hack 8 | . . . 8 . Disable Machine 15 | . . . 15 . Lose Combat Pursuer 15 | . . . 15 . Influence Decreases 260 | 10 . 50 111 89 Entered New Map 55 | . . . . 55 Time Decay 171 | 10 . 40 111 10 Lost Part 34 | . . 10 . 24 Squads Dispatched 2 | . 2 . . . Investigation 1 | . 1 . . . Extermination . | . . . . . Reinforcement 1 | . 1 . . . Assault . | . . . . . Garrison . | . . . . . Intercept . | . . . . . Searches Triggered . | . . . . . Construction Impeded . | . . . . . Haulers Reinforced . | . . . . . Active Scanning Responses . | . . . . . Cargo Convoy Interrupts . | . . . . . Stealth | -11 -10 -10 -9 -9 --------- Run | Yrd Mat Min Mat Min Distress Signals 4 | . 1 . 2 1 Communications Jammed . | . . . . . Distress Signals . | . . . . . Times Spotted 42 | . 6 2 10 24 Peak Tracking Total 21 | . 4 2 5 21 Tactical Retreats 2 | . . . 1 1 Traps | -11 -10 -10 -9 -9 ------- Run | Yrd Mat Min Mat Min Traps Triggered . | . . . . . Indirectly . | . . . . . Trap Hack Attempts . | . . . . . Triggered . | . . . . . Disarmed . | . . . . . Reprogrammed . | . . . . . Reused . | . . . . . Traps Extracted . | . . . . . Installed . | . . . . . Triggered . | . . . . . Objects Rigged 1 | . . . 1 . Machines | -11 -10 -10 -9 -9 ---------- Run | Yrd Mat Min Mat Min Machines Disabled 1 | . . . 1 . Max in Single Turn 1 | . . . 1 . Machines Repaired . | . . . . . Machines Dismantled . | . . . . . Machines Sabotaged . | . . . . . Overloaded Fab Kills . | . . . . . Hacking | -11 -10 -10 -9 -9 --------- Run | Yrd Mat Min Mat Min Machines Accessed 2 | . 1 . 1 . Terminals 2 | . 1 . 1 . Fabricators . | . . . . . Repair Stations . | . . . . . Recycling Units . | . . . . . Scanalyzers . | . . . . . Garrison Access . | . . . . . Total Hacks 5 | . 4 . 1 . Successful 1 | . . . 1 . Failed 4 | . 4 . . . Catastrophic 1 | . 1 . . . Database Lockouts . | . . . . . Manual 5 | . 4 . 1 . Terminals 5 | . 4 . 1 . Fabricators . | . . . . . Repair Stations . | . . . . . Recycling Units . | . . . . . Scanalyzers . | . . . . . Garrison Access . | . . . . . Terminal Hacks . | . . . . . Fabricator Hacks . | . . . . . Repair Station Hacks . | . . . . . Recycling Unit Hacks . | . . . . . Scanalyzer . | . . . . . Garrison Access Hacks . | . . . . . Unauthorized Hacks 1 | . . . 1 . Terminals 1 | . . . 1 . Detonate 1 | . . . 1 . Fabricators . | . . . . . Repair Stations . | . . . . . Recycling Units . | . . . . . Scanalyzers . | . . . . . Garrison Access . | . . . . . Data Cores Recovered . | . . . . . Used . | . . . . . Hacking Detections 2 | . 1 . 1 . Full Trace Events 1 | . 1 . . . Feedback Events . | . . . . . Feedback Blocked . | . . . . . Robot Schematics Acquired . | . . . . . Robots Built . | . . . . . Authchips . | . . . . . Time . | . . . . . Total Robot Build Rating . | . . . . . Part Schematics Acquired . | . . . . . Parts Built . | . . . . . Authchips . | . . . . . Time . | . . . . . Total Part Build Rating . | . . . . . Parts Repaired . | . . . . . Time . | . . . . . Parts Recycled . | . . . . . Recycled Matter . | . . . . . Retrieved Matter . | . . . . . Retrieved Components . | . . . . . Parts Scanalyzed . | . . . . . Part Schematics Acquired . | . . . . . Parts Damaged . | . . . . . Bothacking | -11 -10 -10 -9 -9 ------------ Run | Yrd Mat Min Mat Min Used RIF Installer . | . . . . . Robots Hacked . | . . . . . Non-combat . | . . . . . Combat . | . . . . . Robot Hacks Applied . | . . . . . Relay Couplers Released . | . . . . . Fabnet Peak Effective % . | . . . . . Robots Rewired . | . . . . . Allies Hacked . | . . . . . Hacks Repelled . | . . . . . Allies | -11 -10 -10 -9 -9 -------- Run | Yrd Mat Min Mat Min Total Allies 1 | . . 1 . . Largest Group 1 | . . 1 1 . Highest-Rated Group 31 | . . 31 31 . Highest-Rated Ally 31 | . . 31 31 . Total Orders . | . . . . . Ally Attacks 14 | . . . 14 . Total Damage 210 | . . . 210 . Kills 3 | . . . 3 . Allies Corrupted . | . . . . . Allies Melted . | . . . . . Intel | -11 -10 -10 -9 -9 ------- Run | Yrd Mat Min Mat Min Active Infowar (turns) . | . . . . . Robot Analysis Total . | . . . . . Derelict Logs Recovered . | . . . . . Drone Launches . | . . . . . Drone Recoveries . | . . . . . Exploration | -11 -10 -10 -9 -9 ------------- Run | Yrd Mat Min Mat Min Turns Passed 1015 | 87 98 453 278 99 Spaces Moved 660 | 45 66 346 164 39 Core 16 | 9 . . . 7 Treads . | . . . . . Legs 644 | 36 66 346 164 32 Wheels . | . . . . . Hover . | . . . . . Flight . | . . . . . Fastest Speed 50 | 50 120 120 120 50 Average Speed 118 | 106 120 120 120 107 Slowest Speed 120 | 120 120 120 120 120 Overloaded Moves . | . . . . . Propulsion Burnouts . | . . . . . Robots Hopped . | . . . . . Potential Cave-ins . | . . . . . Cave-ins Triggered . | . . . . . Exploration Rate (%) 19 | 4 18 52 13 12 Regions Visited 4 Branch Regions 2 Pre-discovered Areas . | . . . . . Known Exits Taken . | . . . . . Unknown Exits Taken 4 | 1 1 1 1 . Scrap Searched . | . . . . . Spaces Dug . | . . . . . Terrain Destroyed . | . . . . . Melee . | . . . . . Projectile . | . . . . . AOE . | . . . . . Terrain Rammed . | . . . . . Walls Destroyed . | . . . . . Machines Disabled . | . . . . . Actions | -11 -10 -10 -9 -9 --------- Run | Yrd Mat Min Mat Min Total 804 | 68 74 369 221 72 Wait 55 | 1 2 10 34 8 Move 656 | 44 65 345 163 39 Hop . | . . . . . Pick Up 17 | 9 1 3 4 . Fast Attach . | . . . . . Attach 14 | 5 . 3 2 4 Detach . | . . . . . Swap . | . . . . . Drop 3 | . . . 3 . Fire 51 | 9 6 8 14 14 Melee . | . . . . . Ram 4 | . . . . 4 Kick 4 | . . . 1 3 Crush . | . . . . . Escape Stasis . | . . . . . Rewire . | . . . . . Trap . | . . . . . Miscellaneous . | . . . . . Route ------- -11/Scrapyard -10/Materials -10/Mines -9/Materials -9/Mines History --------- Turn | Location | Event 9 | -11/Scrapyard | Discovered new exit (range 16) 88 | -11/Scrapyard | Entered Materials 160 | -10/Materials | Discovered new exit (range 16) 186 | -10/Materials | Entered Mines 320 | -10/Mines | Discovered new exit (range 13) 321 | -10/Mines | Build established: Mutant 550 | -10/Mines | Received a Mining Laser from a helpful Derelict 639 | -10/Mines | Entered Materials 639 | -9/Materials | Accompanied by 1 ally 639 | -9/Materials | Evolved 2 slots: Propulsion x2 641 | -9/Materials | Discovered new exit (range 14) 917 | -9/Materials | Entered Mines 954 | -9/Mines | Assembled infested the area 997 | -9/Mines | Lost 5 parts (2n2u1w) 998 | -9/Mines | System corruption reached 10% 1010 | -9/Mines | System corruption reached 30% 1011 | -9/Mines | Core integrity fell below 50% 1015 | -9/Mines | Core integrity fell below 20% 1016 | -9/Mines | Destroyed by as-74424 with Assembled Blade Last Messages --------------- Lgt. Assault Rifle destroyed. System corrupted by crushing effect (+4). Aluminum Leg destroyed. System corrupted by crushing effect (+2). Lgt. Armor Plating destroyed. System corrupted by crushing effect (+1). Kicked as-72456. Ion Engine destroyed. System corrupted by crushing effect (+4). Kicked as-72456. as-72456 destroyed. Aluminum Leg destroyed. Hvy. Assault Rifle destroyed. System corrupted by crushing effect (+4). Acquired 8 matter. Slammed into as-94556. Slammed into as-27528. Slammed into as-50950. System corrupted: IFF burst signal emitted. Slammed into as-74424. Map ----- +----------------------------------------------------+ | | | | | ???????????????????????????????? | | ??##??#######??????????????????? | | ??# #?????????????????? | | ??# """ """ #?????????????????? | | ??# """ """ #?????????????????? | | ??# """ """ #?????????????????? | | ??# #?????????????????? | | ??# """ #?????????????????? | | ??# """ #?????????????????? | | ??# """ #?????????????????? | | ??# #?????????????????? | | ??# """ #?????????????????? | | ??# """ #?????????????????? | | ??# """ #?????????????????? | | ??# #?????????????????? | | ??# #?????????????????? | | ??# #?????????????????? | | ??# #?????????????????? | | ??###### #####?????????????????? | | ??###### #?????????????????????? | | ??# ##*#????## ##???????????? | | ??# #%### #???????????? | | ???# a=aaa a ????????? | | ???## a@aa ????????? | | ????#a ### ## ????????? | | ????## ##?# ##???????????????? | | ?????# #??####????????????????? | | ????## #??????????????????????? | | ???## #??????????????????????? | | ??## #??????????????????????? | | ??# #??????????????????????? | | ??# ##??????????????????????? | | ??# #???????????????????????? | | ??## ##???????????????????????? | | ???####????????????????????????? | | ???????????????????????????????? | | ???????????????????????????????? | | ???????????????????????????????? | | ???????????????????????????????? | | ???????????????????????????????? | | ???????????????????????????????? | | ???????????????????????????????? | | ???????????????????????????????? | | ???????????????????????????????? | | ???????????????????????????????? | | ???????????????????????????????? | | ???????????????????????????????? | | ???????????????????????????????? | +----------------------------------------------------+ Best States ------------- Heat Dissipation 38 Energy Generation 10 Energy Capacity 250 Matter Stores 450 Matter Capacity 450 Sight Range 16 Terrain Scan Density 10 Armor Coverage 150 Evasion (%) 55 Item Schematics ----------------- None Robot Schematics ------------------ None Fabricated ------------ Nothing Repaired ---------- Nothing Alien Tech Used ----------------- None Achievements -------------- Hunted True Hacker Challenges ------------ None Game ------ Seed PoweredHeavyCasing Manual? 0 Play Time 00:21:18 Cumulative 10.0 hours Start 2025.05.28 @ 21:42:23 End 2025.05.28 @ 22:04:59 Sessions 1 Manual Loads 0 Difficulty Rogue Special Mode None Game No. 19 Rogue 19 Adventurer 0 Explorer 0 Win Type - Total 0 Types 0/0/0/0/0/0/0/0/0/0 Lore% 18 Gallery% 15 Achievement% 14 Wizard Run 0 Options --------- Layout 2 ASCII 0 Keyboard 0 Movement Numpad Keybinds 0 Fullscreen 1 Font 24/Proggy Map View 50x44 Zoom Use 0% Tactical HUD 0 Map Filters NONE Filters NONE Steam 1 RUN: e8714249-6688-487c-bc37-557feadb7f47